[Event "EIRCC 2019"]
[Site "Tallinn"]
[Date "2019.12.06"]
[Round "9.22"]
[White "Vorobjov, Pavel"]
[Black "Babula, Vlastimil"]
[Result "0-1"]
[ECO "E46"]
[WhiteElo "2304"]
[BlackElo "2559"]
[Annotator "ChessBase"]
[PlyCount "60"]
[EventDate "2019.12.05"]
[EventType "swiss"]
[EventCountry "EST"]
[SourceTitle "playchess.com"]
[Source "ChessBase"]
[SourceQuality "1"]
[TimeControl "900+10"]

1. d4 {[%emt 0:00:00]} Nf6 {[%emt 0:00:00]} 2. c4 {[%emt 0:00:00]} e6 {[%emt 0:00:00]} 3. Nc3 {[%emt 0:00:00]} Bb4 {[%emt 0:00:00]} 4. e3 {[%emt 0:00:01]} O-O {[%emt 0:00:10]} 5. Nge2 {[%emt 0:00:02]} d5 {[%emt 0:00:32]} 6. a3 {[%emt 0:00:03]} Bd6 {[%emt 0:00:43]} 7. c5 {[%emt 0:00:37]} Be7 {[%emt 0:00:02]} 8. Ng3 {[%emt 0:00:18]} b6 {[%emt 0:00:37]} 9. b4 {[%emt 0:00:13]} a5 {[%emt 0:00:07]} 10. Bd2 {[%emt 0:00:53]} c6 {[%emt 0:00:11]} 11. f4 {[%emt 0:00:31]} Nbd7 {[%emt 0:01:47]} 12. Bd3 {[%emt 0:00:53]} Ba6 {[%emt 0:00:15]} 13. Bxa6 {[%emt 0:01:06]} Rxa6 {[%emt 0:00:04]} 14. O-O {[%emt 0:00:26]} Qa8 {[%emt 0:00:14]} 15. Rb1 {[%emt 0:00:20]} Bd8 {[%emt 0:01:05]} 16. Rb2 {[%emt 0:00:58]} axb4 {[%emt 0:01:42]} 17. axb4 {[%emt 0:00:01]} bxc5 {[%emt 0:00:03]} 18. bxc5 {[%emt 0:00:09]} Ba5 {[%emt 0:00:05]} 19. Nb1 {[%emt 0:00:10]} Rb8 {[%emt 0:00:50]} 20. Qc2 {[%emt 0:01:34]} Rxb2 {[%emt 0:00:31]} 21. Qxb2 {[%emt 0:00:04]} Bxd2 {[%emt 0:00:18]} 22. Nxd2 {[%emt 0:00:21]} Ra2 {[%emt 0:00:15]} 23. Qb4 {[%emt 0:00:14]} h5 {[%emt 0:00:39]} 24. Rb1 {[%emt 0:01:21]} Qa6 {[%emt 0:00:40]} 25. Qc3 {[%emt 0:02:15]} h4 {[%emt 0:00:35]} 26. Ngf1 {[%emt 0:00:26]} Qe2 {[%emt 0:01:05]} 27. Rb2 {[%emt 0:01:55]} Ne4 {[%emt 0:00:51]} 28. Qc1 {[%emt 0:00:43]} Rxb2 {[%emt 0:00:57]} 29. Qxb2 {[%emt 0:00:07]} Qf2+ {[%emt 0:00:13]} 30. Kh1 {[%emt 0:00:05]} Nxd2 {[%emt 0:00:20]} 0-1

[Event "EIRCC 2019"]
[Site "Tallinn"]
[Date "2019.12.06"]
[Round "9.23"]
[White "Ruck, Robert"]
[Black "Kiik, Kalle"]
[Result "1-0"]
[ECO "D34"]
[WhiteElo "2551"]
[BlackElo "2295"]
[Annotator "ChessBase"]
[PlyCount "73"]
[EventDate "2019.12.05"]
[EventType "swiss"]
[EventCountry "EST"]
[SourceTitle "playchess.com"]
[Source "ChessBase"]
[SourceQuality "1"]
[TimeControl "900+10"]

1. Nf3 {[%emt 0:01:06]} c5 {[%emt 0:00:00]} 2. c4 {[%emt 0:00:01]} e6 {[%emt 0:00:00]} 3. g3 {[%emt 0:00:06]} d5 {[%emt 0:00:00]} 4. cxd5 {[%emt 0:00:02]} exd5 {[%emt 0:00:01]} 5. d4 {[%emt 0:00:02]} Nc6 {[%emt 0:00:03]} 6. Bg2 {[%emt 0:00:03]} Nf6 {[%emt 0:00:03]} 7. O-O {[%emt 0:00:03]} Be7 {[%emt 0:00:02]} 8. Nc3 {[%emt 0:00:02]} O-O {[%emt 0:00:03]} 9. b3 {[%emt 0:00:13]} Ne4 {[%emt 0:00:10]} 10. Bb2 {[%emt 0:00:02]} Bf6 {[%emt 0:00:04]} 11. Na4 {[%emt 0:00:04]} b6 {[%emt 0:00:04]} 12. Rc1 {[%emt 0:00:32]} Re8 {[%emt 0:00:07]} 13. dxc5 {[%emt 0:00:05]} Bxb2 {[%emt 0:00:04]} 14. Nxb2 {[%emt 0:00:02]} bxc5 {[%emt 0:00:08]} 15. Na4 {[%emt 0:00:05]} Ba6 {[%emt 0:00:06]} 16. Re1 {[%emt 0:00:04]} c4 {[%emt 0:00:10]} 17. bxc4 {[%emt 0:00:04]} Bxc4 {[%emt 0:00:59]} 18. Nd2 {[%emt 0:00:03]} Nxd2 {[%emt 0:02:42]} 19. Qxd2 {[%emt 0:00:03]} Ne5 {[%emt 0:00:50]} 20. Rcd1 {[%emt 0:02:06]} Qf6 {[%emt 0:00:35]} 21. Nc3 {[%emt 0:00:39]} Rad8 {[%emt 0:00:18]} 22. Nxd5 {[%emt 0:02:27]} Bxd5 {[%emt 0:04:38]} 23. Bxd5 {[%emt 0:00:04]} Rd7 {[%emt 0:00:05]} 24. Qc2 {[%emt 0:03:21]} h5 {[%emt 0:00:50]} 25. Bg2 {[%emt 0:00:20]} Rde7 {[%emt 0:00:09]} 26. Qd2 {[%emt 0:01:26]} Ng4 {[%emt 0:00:31]} 27. e3 {[%emt 0:00:39]} h4 {[%emt 0:00:21]} 28. Qe2 {[%emt 0:01:06]} Qg6 {[%emt 0:01:04]} 29. Rd4 {[%emt 0:00:26]} f5 {[%emt 0:00:30]} 30. Red1 {[%emt 0:00:17]} hxg3 {[%emt 0:02:06]} 31. hxg3 {[%emt 0:00:01]} Qh5 {[%emt 0:00:17]} 32. Qf3 {[%emt 0:00:59]} Qh2+ {[%emt 0:01:09]} 33. Kf1 {[%emt 0:00:02]} Qh5 {[%emt 0:00:06]} 34. Qc6 {[%emt 0:01:22]} Rxe3 {[%emt 0:00:40]} 35. fxe3 {[%emt 0:00:11]} Nxe3+ {[%emt 0:00:01]} 36. Kg1 {[%emt 0:00:08]} Nxd1 {[%emt 0:00:04]} 37. Qd5+ {[%emt 0:00:32]} 1-0

[Event "EIRCC 2019"]
[Site "Tallinn"]
[Date "2019.12.06"]
[Round "9.24"]
[White "Stocek, Jiri"]
[Black "Lavendelis, Egons"]
[Result "1-0"]
[ECO "D85"]
[WhiteElo "2532"]
[BlackElo "2293"]
[Annotator "ChessBase"]
[PlyCount "93"]
[EventDate "2019.12.05"]
[EventType "swiss"]
[EventCountry "EST"]
[SourceTitle "playchess.com"]
[Source "ChessBase"]
[SourceQuality "1"]
[TimeControl "900+10"]

1. d4 {[%emt 0:00:00]} Nf6 {[%emt 0:00:00]} 2. c4 {[%emt 0:00:00]} g6 {[%emt 0:00:00]} 3. Nc3 {[%emt 0:00:00]} d5 {[%emt 0:00:00]} 4. Nf3 {[%emt 0:00:09]} Bg7 {[%emt 0:00:00]} 5. cxd5 {[%emt 0:00:04]} Nxd5 {[%emt 0:00:00]} 6. e4 {[%emt 0:00:10]} Nxc3 {[%emt 0:00:02]} 7. bxc3 {[%emt 0:00:01]} O-O {[%emt 0:00:04]} 8. Be2 {[%emt 0:00:12]} c5 {[%emt 0:00:04]} 9. O-O {[%emt 0:00:06]} cxd4 {[%emt 0:00:41]} 10. cxd4 {[%emt 0:00:03]} b6 {[%emt 0:00:01]} 11. Bg5 {[%emt 0:01:05]} Bb7 {[%emt 0:00:11]} 12. Qd3 {[%emt 0:00:13]} Nc6 {[%emt 0:00:21]} 13. Rad1 {[%emt 0:00:23]} Rc8 {[%emt 0:01:33]} 14. d5 {[%emt 0:00:28]} Na5 {[%emt 0:01:11]} 15. Qa3 {[%emt 0:00:59]} f6 {[%emt 0:01:03]} 16. Bd2 {[%emt 0:00:46]} f5 {[%emt 0:00:55]} 17. Ng5 {[%emt 0:00:36]} Qd7 {[%emt 0:06:04]} 18. Qh3 {[%emt 0:00:29]} h5 {[%emt 0:00:35]} 19. Ne6 {[%emt 0:01:48]} fxe4 {[%emt 0:01:23]} 20. Qg3 {[%emt 0:00:09]} Rf6 {[%emt 0:00:44]} 21. Nxg7 {[%emt 0:01:10]} Kxg7 {[%emt 0:00:02]} 22. Bc3 {[%emt 0:00:23]} Rxc3 {[%emt 0:00:52]} 23. Qxc3 {[%emt 0:00:02]} Bxd5 {[%emt 0:00:01]} 24. Qe5 {[%emt 0:01:06]} e6 {[%emt 0:00:10]} 25. f3 {[%emt 0:02:27]} Nc6 {[%emt 0:00:02]} 26. Qc3 {[%emt 0:00:40]} e3 {[%emt 0:00:02]} 27. Qxe3 {[%emt 0:00:09]} Ne7 {[%emt 0:00:25]} 28. Qc3 {[%emt 0:00:12]} Kf7 {[%emt 0:00:15]} 29. Rd2 {[%emt 0:00:03]} Nf5 {[%emt 0:01:30]} 30. Rc1 {[%emt 0:00:12]} Qd6 {[%emt 0:01:20]} 31. Qc7+ {[%emt 0:00:18]} Qxc7 {[%emt 0:00:02]} 32. Rxc7+ {[%emt 0:00:03]} Ne7 {[%emt 0:00:06]} 33. Rxa7 {[%emt 0:00:13]} Rf4 {[%emt 0:00:01]} 34. Rb2 {[%emt 0:00:13]} Kf6 {[%emt 0:00:05]} 35. Kf2 {[%emt 0:00:06]} Nc6 {[%emt 0:00:05]} 36. Rc7 {[%emt 0:00:17]} Ne5 {[%emt 0:00:25]} 37. Ra7 {[%emt 0:00:52]} Nc4 {[%emt 0:00:17]} 38. Rb4 {[%emt 0:00:19]} Rd4 {[%emt 0:00:20]} 39. Rc7 {[%emt 0:00:26]} b5 {[%emt 0:00:05]} 40. a4 {[%emt 0:00:20]} Rd2 {[%emt 0:00:03]} 41. axb5 {[%emt 0:00:28]} Ne5 {[%emt 0:00:02]} 42. Ke3 {[%emt 0:00:34]} Ra2 {[%emt 0:00:08]} 43. Rf4+ {[%emt 0:00:32]} Kg5 {[%emt 0:00:02]} 44. h4+ {[%emt 0:00:01]} Kh6 {[%emt 0:00:02]} 45. Rf8 {[%emt 0:00:06]} g5 {[%emt 0:00:30]} 46. Rf6+ {[%emt 0:00:04]} Ng6 {[%emt 0:00:04]} 47. Bd3 {[%emt 0:00:06]} 1-0

[Event "EIRCC 2019"]
[Site "Tallinn"]
[Date "2019.12.06"]
[Round "9.25"]
[White "Mickevicius, Juras"]
[Black "Ionov, Sergey"]
[Result "1-0"]
[ECO "E04"]
[WhiteElo "2288"]
[BlackElo "2480"]
[Annotator "ChessBase"]
[PlyCount "71"]
[EventDate "2019.12.05"]
[EventType "swiss"]
[EventCountry "EST"]
[SourceTitle "playchess.com"]
[Source "ChessBase"]
[SourceQuality "1"]
[TimeControl "900+10"]

1. d4 {[%emt 0:00:00]} d5 {[%emt 0:00:00]} 2. c4 {[%emt 0:00:00]} e6 {[%emt 0:00:02]} 3. Nf3 {[%emt 0:00:00]} Nf6 {[%emt 0:00:02]} 4. g3 {[%emt 0:00:00]} dxc4 {[%emt 0:00:04]} 5. Bg2 {[%emt 0:00:00]} c5 {[%emt 0:00:02]} 6. O-O {[%emt 0:00:02]} Nc6 {[%emt 0:00:01]} 7. Qa4 {[%emt 0:00:02]} Bd7 {[%emt 0:00:07]} 8. Qxc4 {[%emt 0:00:03]} b5 {[%emt 0:00:02]} 9. Qd3 {[%emt 0:00:02]} c4 {[%emt 0:00:01]} 10. Qc2 {[%emt 0:00:11]} Rc8 {[%emt 0:01:09]} 11. e4 {[%emt 0:00:29]} Be7 {[%emt 0:00:05]} 12. Qe2 {[%emt 0:00:07]} O-O {[%emt 0:00:11]} 13. Rd1 {[%emt 0:00:06]} Re8 {[%emt 0:02:10]} 14. Ne5 {[%emt 0:01:38]} Qb6 {[%emt 0:01:11]} 15. Be3 {[%emt 0:00:11]} Qb8 {[%emt 0:00:12]} 16. f4 {[%emt 0:03:18]} Red8 {[%emt 0:00:16]} 17. g4 {[%emt 0:02:02]} Be8 {[%emt 0:01:35]} 18. g5 {[%emt 0:00:09]} Nd7 {[%emt 0:00:02]} 19. Nxc6 {[%emt 0:00:56]} Rxc6 {[%emt 0:00:02]} 20. d5 {[%emt 0:01:06]} exd5 {[%emt 0:00:33]} 21. exd5 {[%emt 0:00:01]} Rcc8 {[%emt 0:00:05]} 22. Nc3 {[%emt 0:01:12]} Nc5 {[%emt 0:01:25]} 23. Kh1 {[%emt 0:01:55]} Bd6 {[%emt 0:02:46]} 24. Rf1 {[%emt 0:00:42]} Nd3 {[%emt 0:02:12]} 25. Qd2 {[%emt 0:00:01]} Bd7 {[%emt 0:01:03]} 26. Ne4 {[%emt 0:00:42]} Bb4 {[%emt 0:00:46]} 27. Qc2 {[%emt 0:00:32]} Re8 {[%emt 0:00:10]} 28. a3 {[%emt 0:00:20]} Bf8 {[%emt 0:00:08]} 29. Qd2 {[%emt 0:00:08]} Bf5 {[%emt 0:01:15]} 30. Ng3 {[%emt 0:00:14]} Bd7 {[%emt 0:00:02]} 31. Bd4 {[%emt 0:00:51]} Nc5 {[%emt 0:00:27]} 32. Be5 {[%emt 0:00:21]} Bd6 {[%emt 0:00:20]} 33. Bxg7 {[%emt 0:00:27]} Kxg7 {[%emt 0:01:32]} 34. Nh5+ {[%emt 0:00:00]} Kg6 {[%emt 0:00:23]} 35. Qc3 {[%emt 0:00:23]} Kxh5 {[%emt 0:00:12]} 36. Qg7 1-0

[Event "EIRCC 2019"]
[Site "Tallinn"]
[Date "2019.12.06"]
[Round "9.26"]
[White "Galopoulos, Nikolaos"]
[Black "Nasibullin, Iskander"]
[Result "0-1"]
[ECO "E06"]
[WhiteElo "2439"]
[BlackElo "2270"]
[Annotator "NA"]
[PlyCount "88"]
[EventDate "2019.12.05"]
[EventType "swiss"]
[EventCountry "EST"]
[SourceTitle "playchess.com"]
[Source "ChessBase"]
[SourceQuality "1"]
[TimeControl "900+10"]

1. d4 {[%emt 0:00:00]} Nf6 {[%emt 0:01:17]} 2. c4 {[%emt 0:00:00]} e6 {[%emt 0:00:01]} 3. g3 {[%emt 0:00:03]} d5 {[%emt 0:00:03]} 4. Bg2 {[%emt 0:00:01]} Be7 {[%emt 0:00:04]} 5. Nf3 {[%emt 0:00:03]} O-O {[%emt 0:00:04]} 6. Nc3 {[%emt 0:00:01]} b6 {[%emt 0:00:01]} 7. O-O {[%emt 0:00:19]} Bb7 {[%emt 0:00:01]} 8. Ne5 {[%emt 0:00:02]} Na6 {[%emt 0:00:02]} 9. Qa4 {[%emt 0:00:38]} Qe8 {[%emt 0:00:02]} 10. Qxe8 {[%emt 0:00:14]} Rfxe8 {[%emt 0:00:02]} 11. Bf4 {[%emt 0:00:02]} c5 {[%emt 0:00:03]} 12. Rfd1 {[%emt 0:00:34]} Bf8 {[%emt 0:04:16]} 13. dxc5 {[%emt 0:00:34]} Nxc5 {[%emt 0:00:10]} 14. cxd5 {[%emt 0:00:58]} exd5 {[%emt 0:00:01]} 15. Nd3 {[%emt 0:01:35]} Rad8 {[%emt 0:00:46]} 16. Bg5 {[%emt 0:00:30]} d4 {[%emt 0:02:46]} 17. Bxf6 {[%emt 0:00:02]} gxf6 {[%emt 0:00:19]} 18. Nb5 {[%emt 0:00:01]} Bxg2 {[%emt 0:00:55]} 19. Kxg2 {[%emt 0:00:14]} a6 {[%emt 0:01:11]} 20. Nxc5 {[%emt 0:00:02]} bxc5 {[%emt 0:00:31]} 21. Na3 {[%emt 0:00:04]} Rxe2 {[%emt 0:00:06]} 22. Nc4 {[%emt 0:00:01]} Bh6 {[%emt 0:00:24]} 23. Rd3 {[%emt 0:01:30]} Rc2 {[%emt 0:00:15]} 24. b3 {[%emt 0:00:02]} Re8 {[%emt 0:00:28]} 25. Rf3 {[%emt 0:00:06]} Re6 {[%emt 0:00:09]} 26. Rf5 {[%emt 0:00:06]} d3 {[%emt 0:00:58]} 27. Rd1 {[%emt 0:00:01]} d2 {[%emt 0:00:20]} 28. f4 {[%emt 0:02:59]} Re1 {[%emt 0:00:43]} 29. Rxd2 {[%emt 0:00:01]} Rxd2+ {[%emt 0:00:05]} 30. Nxd2 {[%emt 0:00:01]} Re2+ {[%emt 0:00:01]} 31. Kh3 {[%emt 0:00:01]} Rxd2 {[%emt 0:00:01]} 32. Rxf6 {[%emt 0:00:01]} Bg7 {[%emt 0:00:16]} 33. Rxa6 {[%emt 0:00:01]} Bd4 {[%emt 0:00:02]} 34. a4 {[%emt 0:00:05]} Kg7 {[%emt 0:00:36]} 35. Ra8 {[%emt 0:06:14]} Rb2 {[%emt 0:00:43]} 36. Rb8 {[%emt 0:00:18]} Bg1 {[%emt 0:00:03]} 37. a5 {[%emt 0:00:07]} c4 {[%emt 0:00:02]} 38. b4 {[%emt 0:00:46]} c3 {[%emt 0:00:22]} 39. a6 {[%emt 0:00:33]} c2 {[%emt 0:01:20]} 40. Rc8 {[%emt 0:00:01]} Be3 {[%emt 0:00:17]} 41. b5 {[%emt 0:00:12]} c1=Q {[%emt 0:00:14]} 42. Rxc1 {[%emt 0:00:05]} Bxc1 {[%emt 0:00:01]} 43. a7 {[%emt 0:00:01]} Ra2 {[%emt 0:00:02]} 44. b6 {[%emt 0:00:01]} Be3 {[%emt 0:00:01]} 0-1

[Event "EIRCC 2019"]
[Site "Tallinn"]
[Date "2019.12.06"]
[Round "9.27"]
[White "Gretarsson, Helgi Ass"]
[Black "Martynov, Roman"]
[Result "0-1"]
[ECO "E32"]
[WhiteElo "2421"]
[BlackElo "2269"]
[Annotator "NA"]
[PlyCount "92"]
[EventDate "2019.12.05"]
[EventType "swiss"]
[EventCountry "EST"]
[SourceTitle "playchess.com"]
[Source "ChessBase"]
[SourceQuality "1"]
[TimeControl "900+10"]

1. d4 {[%emt 0:00:00]} Nf6 {[%emt 0:00:00]} 2. c4 {[%emt 0:00:00]} e6 {[%emt 0:00:00]} 3. Nc3 {[%emt 0:00:00]} Bb4 {[%emt 0:00:08]} 4. Qc2 {[%emt 0:00:00]} O-O {[%emt 0:00:13]} 5. e4 {[%emt 0:00:00]} d5 {[%emt 0:00:30]} 6. e5 {[%emt 0:00:11]} Ne4 {[%emt 0:00:07]} 7. Bd3 {[%emt 0:00:03]} c5 {[%emt 0:00:33]} 8. Nf3 {[%emt 0:01:21]} cxd4 {[%emt 0:02:05]} 9. Nxd4 {[%emt 0:01:23]} Nd7 {[%emt 0:00:41]} 10. cxd5 {[%emt 0:02:02]} exd5 {[%emt 0:00:08]} 11. e6 {[%emt 0:01:36]} Ndc5 {[%emt 0:03:35]} 12. exf7+ {[%emt 0:00:08]} Rxf7 {[%emt 0:00:01]} 13. O-O {[%emt 0:00:03]} Nxd3 {[%emt 0:02:37]} 14. Qxd3 {[%emt 0:00:02]} Bxc3 {[%emt 0:01:03]} 15. bxc3 {[%emt 0:00:01]} Nc5 {[%emt 0:01:11]} 16. Qg3 {[%emt 0:01:47]} b6 {[%emt 0:00:02]} 17. Bf4 {[%emt 0:04:24]} Qd7 {[%emt 0:00:19]} 18. Nf3 {[%emt 0:02:00]} Ne4 {[%emt 0:01:03]} 19. Qh4 {[%emt 0:00:01]} Ba6 {[%emt 0:01:38]} 20. Rfe1 {[%emt 0:00:21]} Qf5 {[%emt 0:01:16]} 21. Ng5 {[%emt 0:00:46]} Nxg5 {[%emt 0:00:35]} 22. Bxg5 {[%emt 0:00:01]} Rc8 {[%emt 0:00:10]} 23. Be7 {[%emt 0:01:05]} Rc4 {[%emt 0:00:32]} 24. Qg3 {[%emt 0:00:04]} Qc8 {[%emt 0:00:08]} 25. Re3 {[%emt 0:00:21]} d4 {[%emt 0:00:05]} 26. cxd4 {[%emt 0:00:03]} Rc1+ {[%emt 0:00:14]} 27. Re1 {[%emt 0:00:00]} Rxa1 {[%emt 0:00:00]} 28. Rxa1 {[%emt 0:00:01]} Rxe7 {[%emt 0:00:01]} 29. Qa3 {[%emt 0:00:02]} Qb7 {[%emt 0:00:19]} 30. h3 {[%emt 0:00:03]} Bc4 {[%emt 0:00:06]} 31. Qb4 {[%emt 0:00:24]} Bd5 {[%emt 0:00:00]} 32. f3 {[%emt 0:00:11]} h6 {[%emt 0:00:01]} 33. Rc1 {[%emt 0:00:05]} Bxa2 {[%emt 0:00:23]} 34. Qd6 {[%emt 0:00:17]} Qd7 {[%emt 0:00:19]} 35. Qb8+ {[%emt 0:00:17]} Kh7 {[%emt 0:00:11]} 36. Qf4 {[%emt 0:00:02]} Bd5 {[%emt 0:00:08]} 37. h4 {[%emt 0:00:04]} Qe6 {[%emt 0:00:07]} 38. Kh1 {[%emt 0:00:06]} a5 {[%emt 0:00:09]} 39. h5 {[%emt 0:00:03]} a4 {[%emt 0:00:01]} 40. Rc3 {[%emt 0:00:18]} Qe1+ {[%emt 0:00:28]} 41. Kh2 {[%emt 0:00:01]} Qxc3 42. Qf5+ {[%emt 0:00:01]} Kh8 {[%emt 0:00:03]} 43. Qxd5 {[%emt 0:00:02]} Qc7+ {[%emt 0:00:02]} 44. g3 {[%emt 0:00:04]} Qd7 {[%emt 0:00:08]} 45. Qa8+ {[%emt 0:00:22]} Re8 {[%emt 0:00:02]} 46. Qa6 {[%emt 0:00:02]} Qxd4 {[%emt 0:00:06]} 0-1

[Event "EIRCC 2019"]
[Site "Tallinn"]
[Date "2019.12.06"]
[Round "9.28"]
[White "Heinzel, Olaf"]
[Black "Pohjala, Henri"]
[Result "1/2-1/2"]
[ECO "D00"]
[WhiteElo "2269"]
[BlackElo "2418"]
[Annotator "NA"]
[PlyCount "75"]
[EventDate "2019.12.05"]
[EventType "swiss"]
[EventCountry "EST"]
[SourceTitle "playchess.com"]
[Source "ChessBase"]
[SourceQuality "1"]
[TimeControl "900+10"]

1. d4 {[%emt 0:00:00]} d5 {[%emt 0:03:06]} 2. Bf4 {[%emt 0:00:00]} Nf6 {[%emt 0:00:02]} 3. Nd2 {[%emt 0:00:00]} Bf5 {[%emt 0:00:27]} 4. e3 {[%emt 0:00:04]} e6 {[%emt 0:00:09]} 5. Ngf3 {[%emt 0:00:07]} Bd6 {[%emt 0:02:00]} 6. Ne5 {[%emt 0:00:10]} Nbd7 {[%emt 0:02:12]} 7. Be2 {[%emt 0:00:14]} Bxe5 {[%emt 0:01:10]} 8. dxe5 {[%emt 0:00:04]} Ne4 {[%emt 0:00:22]} 9. Nxe4 {[%emt 0:07:32]} Bxe4 {[%emt 0:00:02]} 10. Bd3 {[%emt 0:00:05]} Bxd3 {[%emt 0:02:26]} 11. cxd3 {[%emt 0:00:12]} c6 {[%emt 0:01:30]} 12. O-O {[%emt 0:00:06]} O-O {[%emt 0:00:30]} 13. Rb1 {[%emt 0:02:13]} Qa5 {[%emt 0:01:54]} 14. Qg4 {[%emt 0:03:20]} f5 {[%emt 0:00:12]} 15. exf6 {[%emt 0:00:05]} Rxf6 {[%emt 0:00:02]} 16. a3 {[%emt 0:00:10]} Re8 {[%emt 0:00:38]} 17. Bg3 {[%emt 0:00:53]} Qb5 {[%emt 0:00:10]} 18. d4 {[%emt 0:00:12]} Qd3 {[%emt 0:00:26]} 19. b3 {[%emt 0:00:17]} Rg6 {[%emt 0:00:19]} 20. Qd1 {[%emt 0:00:08]} Qe4 {[%emt 0:00:12]} 21. a4 {[%emt 0:00:07]} e5 {[%emt 0:00:12]} 22. Qd2 {[%emt 0:00:31]} exd4 {[%emt 0:00:10]} 23. exd4 {[%emt 0:00:01]} Rge6 {[%emt 0:00:04]} 24. a5 {[%emt 0:00:13]} Qe2 {[%emt 0:00:16]} 25. Qb4 {[%emt 0:00:06]} b6 {[%emt 0:00:08]} 26. axb6 {[%emt 0:00:09]} axb6 {[%emt 0:00:01]} 27. h3 {[%emt 0:00:13]} h6 {[%emt 0:00:25]} 28. Qa4 {[%emt 0:00:09]} R8e7 {[%emt 0:00:20]} 29. Rbc1 {[%emt 0:00:12]} c5 {[%emt 0:00:07]} 30. Qa8+ {[%emt 0:00:05]} Kh7 {[%emt 0:00:06]} 31. Qxd5 {[%emt 0:00:01]} Nf6 {[%emt 0:00:15]} 32. Qf5+ {[%emt 0:00:20]} g6 {[%emt 0:00:02]} 33. Qf4 {[%emt 0:00:27]} Nh5 {[%emt 0:00:17]} 34. Qb8 {[%emt 0:00:13]} Re8 {[%emt 0:00:12]} 35. Qc7+ {[%emt 0:00:27]} R8e7 {[%emt 0:00:01]} 36. Qb8 {[%emt 0:00:01]} Re8 {[%emt 0:00:14]} 37. Qc7+ {[%emt 0:00:02]} R8e7 {[%emt 0:00:01]} 38. Qb8 1/2-1/2

[Event "EIRCC 2019"]
[Site "Tallinn"]
[Date "2019.12.06"]
[Round "9.29"]
[White "Studer, Noel"]
[Black "Rocha, Sergio"]
[Result "1-0"]
[ECO "C41"]
[WhiteElo "2405"]
[BlackElo "2249"]
[Annotator "NA"]
[PlyCount "97"]
[EventDate "2019.12.05"]
[EventType "swiss"]
[EventCountry "EST"]
[SourceTitle "playchess.com"]
[Source "ChessBase"]
[SourceQuality "1"]
[TimeControl "900+10"]

1. d4 {[%emt 0:00:00]} d6 {[%emt 0:00:00]} 2. e4 {[%emt 0:00:09]} Nf6 {[%emt 0:00:00]} 3. Nc3 {[%emt 0:00:01]} e5 {[%emt 0:00:11]} 4. Nf3 {[%emt 0:00:02]} Nbd7 {[%emt 0:00:50]} 5. Bc4 {[%emt 0:00:01]} Be7 {[%emt 0:00:18]} 6. a4 {[%emt 0:00:07]} O-O {[%emt 0:00:04]} 7. O-O {[%emt 0:00:01]} c6 {[%emt 0:00:04]} 8. Re1 {[%emt 0:00:23]} b6 {[%emt 0:00:33]} 9. h3 {[%emt 0:00:10]} a6 {[%emt 0:00:03]} 10. Ba2 {[%emt 0:00:02]} Bb7 {[%emt 0:00:09]} 11. Be3 {[%emt 0:00:01]} b5 {[%emt 0:00:02]} 12. axb5 {[%emt 0:00:02]} axb5 {[%emt 0:00:02]} 13. b4 {[%emt 0:00:01]} Qc7 {[%emt 0:00:19]} 14. Qd3 {[%emt 0:00:37]} h6 {[%emt 0:00:15]} 15. Nh4 {[%emt 0:00:46]} Rfe8 {[%emt 0:00:06]} 16. Nf5 {[%emt 0:02:24]} Bf8 {[%emt 0:00:11]} 17. Bb3 {[%emt 0:00:01]} d5 {[%emt 0:02:24]} 18. Rxa8 {[%emt 0:01:55]} Bxa8 {[%emt 0:00:03]} 19. exd5 {[%emt 0:02:55]} e4 {[%emt 0:00:02]} 20. Qe2 {[%emt 0:00:31]} Bxb4 {[%emt 0:00:24]} 21. Bd2 {[%emt 0:00:15]} Bxc3 {[%emt 0:02:50]} 22. Bxc3 {[%emt 0:00:01]} cxd5 {[%emt 0:00:39]} 23. Bb4 {[%emt 0:00:03]} Nf8 {[%emt 0:00:59]} 24. Qxb5 {[%emt 0:00:59]} Ne6 {[%emt 0:00:35]} 25. Bd6 {[%emt 0:01:25]} Qc3 {[%emt 0:00:48]} 26. Rd1 {[%emt 0:00:05]} Ng5 {[%emt 0:01:16]} 27. Ne3 {[%emt 0:01:35]} Bc6 {[%emt 0:01:27]} 28. Qb6 {[%emt 0:01:08]} Bd7 {[%emt 0:00:03]} 29. Be5 {[%emt 0:00:09]} Re6 {[%emt 0:00:36]} 30. Qb8+ {[%emt 0:00:32]} Re8 {[%emt 0:01:35]} 31. Qd6 {[%emt 0:00:26]} Re6 {[%emt 0:00:02]} 32. Qc7 {[%emt 0:01:30]} Qxc7 {[%emt 0:01:17]} 33. Bxc7 {[%emt 0:00:01]} Rc6 {[%emt 0:00:01]} 34. Be5 {[%emt 0:00:09]} Be6 {[%emt 0:00:01]} 35. Ra1 {[%emt 0:00:50]} Nd7 {[%emt 0:00:09]} 36. Bf4 {[%emt 0:00:14]} Nh7 {[%emt 0:00:26]} 37. Ra8+ {[%emt 0:00:01]} Nhf8 {[%emt 0:00:05]} 38. Ba4 {[%emt 0:00:06]} Rb6 {[%emt 0:00:07]} 39. Bxd7 {[%emt 0:00:06]} Bxd7 40. Nxd5 {[%emt 0:00:01]} Rb1+ {[%emt 0:00:11]} 41. Kh2 {[%emt 0:00:00]} g5 {[%emt 0:00:00]} 42. Bd6 {[%emt 0:00:02]} Kg7 {[%emt 0:00:10]} 43. Bxf8+ {[%emt 0:00:01]} Kg6 {[%emt 0:00:01]} 44. Ra6+ {[%emt 0:00:11]} Be6 {[%emt 0:00:12]} 45. Nc3 {[%emt 0:00:01]} Rb8 {[%emt 0:00:08]} 46. Bc5 {[%emt 0:00:16]} Kf5 {[%emt 0:00:07]} 47. g4+ {[%emt 0:00:15]} Kf4 {[%emt 0:00:03]} 48. Bd6+ {[%emt 0:00:01]} Kf3 {[%emt 0:00:01]} 49. Bxb8 {[%emt 0:00:01]} 1-0